bitfinex-derivatives/quotes_SOLF0:USTF0_20250911
["timestamp","ask_amount","ask_price","bid_price","bid_amount"]
[1757567708017,0.0325618,223.42,223.37,0.03190815]
[1757567708316,0.0325618,223.42,223.38,6.91]
[1757567708507,0.0325618,223.42,223.37,0.03190815]
[1757567708713,0.0325618,223.42,223.38,6.91]
[1757567708914,6.94,223.41,223.37,0.03190815]
[1757567709610,0.0325618,223.42,223.37,0.03190815]
[1757567709914,6.94,223.41,223.37,0.03190815]
[1757567710313,0.0325618,223.42,223.37,0.03190815]
[1757567710617,3.52853739,223.41,223.37,0.03190815]
[1757567710826,6.94,223.39,223.37,0.03190815]
[1757567711117,6.94,223.41,223.37,0.03190815]
[1757567711310,3.52869426,223.4,223.37,0.03190815]
[1757567711509,6.94,223.41,223.37,0.03190815]
[1757567711711,10.46942446,223.4,223.37,0.03190815]
[1757567711911,6.94,223.4,223.37,0.03190815]
[1757567712615,6.94,223.41,223.37,0.03190815]
[1757567712821,6.94,223.39,223.37,0.03190815]
[1757567713020,0.0325618,223.42,223.37,0.03190815]
[1757567713220,7.01552598,223.41,223.37,0.03190815]
[1757567713421,7.01552598,223.4,223.37,0.03190815]
[1757567713618,6.94,223.38,223.37,0.03190815]
[1757567713819,10.42602766,223.38,223.37,0.03190815]
[1757567714519,13.95523979,223.38,223.37,0.03190815]
[1757567717812,10.42602766,223.38,223.37,0.03190815]
[1757567718422,13.92219483,223.38,223.37,0.03190815]
[1757567719320,13.92219483,223.38,223.3,2.05996283]
[1757567719521,9.51851275,223.36,223.3,2.05996283]
[1757567719719,6.94,223.34,223.3,2.05996283]
[1757567720022,6.94,223.35,223.3,2.05996283]
[1757567720327,6.94,223.33,223.3,2.05996283]
[1757567722729,6.96944007,223.35,223.3,8.96996283]
[1757567722931,0.02944007,223.35,223.31,6.91]
[1757567723126,6.96944007,223.35,223.31,6.91]
[1757567723326,6.94,223.34,223.3,2.05996283]
[1757567723722,6.96944007,223.35,223.31,6.91]
[1757567723923,6.94,223.34,223.3,2.05996283]
[1757567725032,2.57851275,223.33,223.3,2.05996283]
[1757567725222,6.94,223.32,223.3,2.05996283]
[1757567725626,2.57851275,223.33,223.3,2.05996283]
[1757567725821,6.94,223.32,223.3,2.05996283]
[1757567726425,2.57851275,223.33,223.3,2.05996283]
[1757567726625,6.94,223.32,223.3,2.05996283]
[1757567726826,2.57851275,223.33,223.3,2.05996283]
[1757567727230,7.28,223.32,223.3,2.05996283]
[1757567728126,2.57851275,223.33,223.3,2.05996283]
[1757567728335,7.28,223.32,223.3,2.05996283]
[1757567728927,2.57851275,223.33,223.3,2.05996283]
[1757567729130,7.28,223.32,223.3,2.05996283]
[1757567729931,2.57851275,223.32,223.3,2.05996283]
[1757567730127,7.28,223.31,223.3,2.05996283]
[1757567730633,9.85851275,223.32,223.3,2.05996283]
[1757567730934,7.28,223.31,223.3,2.05996283]
[1757567731237,7.30944007,223.35,223.31,7.39]
[1757567731830,7.28,223.34,223.31,7.39]
[1757567732936,7.28,223.34,223.3,2.05996283]
[1757567733437,2.60795282,223.35,223.3,2.05996283]
[1757567733627,7.28,223.34,223.3,2.05996283]
[1757567735040,2.60795282,223.35,223.31,7.39]
[1757567735735,7.30944007,223.35,223.31,7.39]
[1757567736128,0.02944007,223.35,223.3,2.05996283]
[1757567736336,7.28,223.34,223.3,2.05996283]
[1757567736532,0.02944007,223.35,223.3,2.05996283]
[1757567736733,7.28,223.34,223.3,2.05996283]
[1757567736931,2.57851275,223.33,223.3,2.05996283]
[1757567737134,7.28,223.32,223.3,2.05996283]
[1757567743437,0.02944007,223.35,223.3,2.05996283]
[1757567743834,0.02944007,223.35,223.31,7.39]
[1757567744440,1.68102702,223.35,223.31,7.39]
[1757567744641,1.68102702,223.35,223.3,2.05996283]
[1757567744842,1.68102702,223.35,223.31,7.39]
[1757567745848,1.68102702,223.35,223.3,2.05996283]
[1757567746039,1.68102702,223.35,223.31,7.39]
[1757567746239,1.68102702,223.35,223.3,2.05996283]
[1757567746439,1.68102702,223.35,223.31,7.39]
[1757567746840,1.68102702,223.35,223.3,2.05996283]
[1757567747144,0.02944007,223.35,223.31,7.39]
[1757567747534,0.02944007,223.35,223.3,2.05996283]
[1757567747740,0.02944007,223.35,223.31,7.39]
[1757567747936,0.02944007,223.35,223.3,2.05996283]
[1757567748744,0.02944007,223.35,223.31,7.39]
[1757567749046,8.96102702,223.35,223.31,7.39]
[1757567749450,8.96102702,223.35,223.3,2.05996283]
[1757567749451,8.93158695,223.33,223.3,9.44996283]
[1757567753750,1.65158695,223.33,223.3,2.05996283]
[1757567754047,1.65158695,223.33,223.31,7.39]
[1757567754349,8.96102702,223.35,223.31,7.39]
[1757567754541,3.502996,223.34,223.31,7.39]
[1757567754740,8.96102702,223.35,223.31,7.39]
[1757567755052,3.502996,223.34,223.31,7.39]
[1757567755346,8.96102702,223.35,223.3,2.05996283]
[1757567755347,5.15577832,223.33,223.3,2.05996283]
[1757567755545,8.93158695,223.31,223.3,2.05996283]
[1757567756242,12.43603059,223.31,223.3,2.05996283]
[1757567760649,12.43983053,223.31,223.3,2.05996283]
[1757567762859,12.43983053,223.31,223.2,6.91]
[1757567763059,1.65158695,223.27,223.2,6.91]
[1757567763462,0.02841879,223.26,223.2,6.91]
[1757567764667,0.02841879,223.26,223.21,1.65158695]
[1757567764866,0.02841879,223.26,223.22,6.91]
[1757567765069,0.02841879,223.26,223.21,1.65158695]
[1757567765263,0.02841879,223.26,223.22,6.91]
[1757567766168,0.02841879,223.26,223.21,1.65158695]
[1757567766469,0.02841879,223.26,223.22,6.91]
[1757567766869,0.02841879,223.26,223.21,1.65158695]
[1757567767066,6.99,223.25,223.22,6.91]
[1757567767266,0.02841879,223.26,223.19,1.65158695]
[1757567767568,0.02841879,223.26,223.2,6.91]
[1757567771880,0.02841879,223.26,223.21,1.65158695]
[1757567772177,0.02841879,223.26,223.22,6.91]
[1757567772676,0.02841879,223.26,223.21,1.65158695]
[1757567773682,0.02841879,223.26,223.22,6.91]
[1757567774176,0.02841879,223.26,223.21,1.65158695]
[1757567774377,0.02841879,223.26,223.22,6.91]
[1757567774775,0.02841879,223.26,223.21,1.65158695]
[1757567774976,0.02841879,223.26,223.23,1.65158695]
[1757567775279,0.02841879,223.26,223.24,6.91]
[1757567775979,0.02841879,223.26,223.23,1.65158695]
[1757567776178,0.02841879,223.26,223.24,6.91]
[1757567776768,0.02841879,223.26,223.23,1.65158695]
[1757567776979,0.02841879,223.26,223.25,1.65158695]
[1757567777180,0.02841879,223.26,223.25,8.56158695]
[1757567777674,6.99,223.35,223.25,2.09158695]
[1757567777979,6.99,223.35,223.28,6.91]
[1757567777980,3.50786078,223.34,223.28,6.91]
[1757567778179,3.50786078,223.33,223.28,6.91]
[1757567778379,3.50786078,223.32,223.28,6.91]
[1757567778576,6.99,223.35,223.28,6.91]
[1757567778780,3.50786184,223.34,223.28,6.91]
[1757567778973,3.50786184,223.33,223.3,6.91]
[1757567779169,3.50786184,223.32,223.29,0.02982427]
[1757567779376,0.03141,223.34,223.29,0.02982427]
[1757567779572,3.50786292,223.33,223.29,0.02982427]
[1757567779882,3.50786292,223.32,223.3,6.91]
[1757567780082,7.02141,223.34,223.3,6.91]
[1757567780281,3.50796864,223.33,223.3,6.91]
[1757567780481,3.50796864,223.32,223.3,6.91]
[1757567780783,7.02141,223.34,223.3,6.91]
[1757567780982,3.507864,223.33,223.3,6.91]
[1757567781185,6.98630995,223.32,223.3,6.91]
[1757567781386,7.02141,223.34,223.3,6.91]
[1757567781581,6.9857718,223.33,223.3,6.91]
[1757567781781,3.47816667,223.32,223.3,6.91]
[1757567781978,3.47816667,223.31,223.3,6.91]
[1757567782485,3.47816667,223.32,223.3,6.91]
[1757567783487,3.47816667,223.32,223.31,6.91]
[1757567783684,0.03141,223.34,223.31,6.91]
[1757567783685,0.03141,223.34,223.31,8.56158695]
[1757567783984,0.03141,223.34,223.33,8.56158695]
[1757567785485,0.03141,223.34,223.33,6.91]
[1757567787291,0.03141,223.34,223.3,7.6]
[1757567787890,0.03141,223.34,223.29,0.02982427]
[1757567789288,0.03141,223.34,223.3,7.6]
[1757567789483,0.03141,223.34,223.29,0.02982427]
[1757567789984,0.03141,223.34,223.3,7.6]
[1757567790581,0.03141,223.34,223.29,0.02982427]
[1757567790783,7.23,223.33,223.3,7.6]
[1757567792590,0.03141,223.34,223.29,0.02982427]
[1757567792890,1.68299695,223.34,223.31,7.6]
[1757567796682,0.03141,223.34,223.31,1.65158695]
[1757567796890,0.03141,223.34,223.32,7.6]
[1757567797293,0.03141,223.34,223.3,7.6]
[1757567797488,0.03141,223.34,223.3,1.65158695]
[1757567797789,0.03141,223.34,223.31,7.6]
[1757567798092,0.03141,223.34,223.3,1.65158695]
[1757567798292,0.03141,223.34,223.31,7.6]
[1757567798684,0.03141,223.34,223.3,1.65158695]
[1757567798884,0.03141,223.34,223.31,7.6]
[1757567799090,0.03141,223.34,223.29,0.02982427]
[1757567799292,0.03141,223.34,223.31,7.6]
[1757567799692,0.03141,223.34,223.3,1.65158695]
[1757567799892,0.03141,223.34,223.31,7.6]
[1757567800094,0.03141,223.34,223.33,7.6]
[1757567810196,7.26141,223.34,223.3,7.6]
[1757567810392,0.03141,223.34,223.3,7.6]
[1757567810598,0.03141,223.34,223.29,0.02982427]
[1757567810799,0.03141,223.34,223.3,7.6]
[1757567811296,0.03141,223.34,223.29,0.02982427]
[1757567812304,0.03141,223.34,223.3,7.6]
[1757567812801,0.03141,223.34,223.29,0.02982427]
[1757567813195,0.03141,223.34,223.3,7.6]
[1757567813395,7.23,223.33,223.3,7.6]
[1757567814609,7.23,223.33,223.29,0.02982427]
[1757567814804,0.03141,223.34,223.29,0.02982427]
[1757567815102,7.23,223.33,223.29,0.02982427]
[1757567815502,0.03141,223.34,223.29,0.02982427]
[1757567815707,7.23,223.32,223.29,0.02982427]
[1757567815910,6.97272722,223.33,223.29,0.02982427]
[1757567815911,7.23,223.3,223.29,0.02982427]
[1757567816708,10.70857694,223.3,223.29,0.02982427]
[1757567818809,14.64642545,223.3,223.29,0.00140548]
[1757567821512,14.64730281,223.3,223.29,0.00140548]
[1757567824614,14.20730281,223.3,223.29,0.00140548]
[1757567832416,14.64730281,223.3,223.29,0.00140548]
[1757567834414,7.18,223.29,223.15,7.02]
[1757567834623,7.18,223.24,223.15,7.02]
[1757567835722,0.03303033,223.22,223.15,7.02]
[1757567837518,7.21303033,223.22,223.15,7.02]
[1757567842921,9.79269295,223.22,223.15,7.02]
[1757567845829,9.79269295,223.22,223.11,7.02]
[1757567847625,7.21303033,223.22,223.11,7.02]
[1757567857244,3.46926387,223.21,223.11,7.02]
[1757567857442,7.21303033,223.22,223.11,7.02]
[1757567859743,3.47234465,223.21,223.11,7.02]
[1757567859942,7.21303033,223.22,223.11,7.02]
[1757567860143,7.39,223.2,223.11,7.02]
[1757567862846,0.03303033,223.22,223.11,7.02]
[1757567863047,3.47537204,223.21,223.11,7.02]
[1757567863249,3.47537204,223.2,223.11,7.02]
[1757567863453,0.03303033,223.22,223.11,7.02]
[1757567863654,6.97264493,223.21,223.11,7.02]
[1757567863855,3.47617526,223.2,223.11,7.02]
[1757567864047,0.03303033,223.22,223.11,7.02]
[1757567864355,6.97264493,223.21,223.11,7.02]
[1757567864552,0.03303033,223.22,223.11,7.02]
[1757567864750,3.47631113,223.21,223.11,7.02]
[1757567864950,7.39,223.21,223.11,7.02]
[1757567867250,0.03303033,223.22,223.13,7.39]
[1757567868359,0.03303033,223.22,223.14,1.65338576]
[1757567868657,0.03303033,223.22,223.15,7.39]
[1757567870656,7.39,223.21,223.15,7.39]
[1757567871558,7.39,223.19,223.12,1.65338576]
[1757567871760,7.39,223.19,223.13,7.39]
[1757567875454,9.04338576,223.19,223.13,7.39]
[1757567875660,7.39,223.17,223.11,1.65338576]
[1757567875959,7.39,223.17,223.1,9.45180946]
[1757567876152,7.39,223.15,223.1,9.45180946]
[1757567876353,0.02977797,223.16,223.1,9.45180946]
[1757567876554,3.49467975,223.15,223.1,9.45180946]
[1757567876754,0.02977797,223.16,223.1,2.06180946]
[1757567876960,7.39,223.14,223.1,2.06180946]
[1757567877153,3.49460704,223.13,223.1,2.06180946]
[1757567877357,1.65338576,223.15,223.1,2.06180946]
[1757567877358,7.04,223.12,223.1,2.06180946]
[1757567877558,7.04,223.12,223.1,9.18180946]
[1757567877958,1.65338576,223.13,223.1,2.06180946]
[1757567878261,8.69338576,223.11,223.1,2.06180946]
[1757567878466,15.70568937,223.11,223.1,2.06180946]
[1757567878958,15.70568937,223.11,223.02,7.12]
[1757567879157,7.04,223.06,223.02,7.12]
[1757567879553,7.07187725,223.06,223.02,7.12]
[1757567879759,0.03187725,223.06,223.02,7.12]
[1757567879960,7.07187725,223.06,223.02,7.12]
[1757567880656,7.07187725,223.06,223.0,7.12]
[1757567885258,0.03187725,223.06,223.0,8.77338576]
[1757567885464,0.03187725,223.06,223.0,7.12]
[1757567885665,0.03187725,223.06,223.03,7.12]
[1757567885967,0.03187725,223.06,223.05,7.12]
[1757567886665,7.07187725,223.06,223.02,7.12]
[1757567887662,7.04,223.05,223.01,0.03224781]
[1757567888357,1.65338576,223.05,223.01,0.03224781]
[1757567888665,7.04,223.04,223.01,0.03224781]
[1757567888857,1.65338576,223.03,223.01,0.03224781]
[1757567889058,7.04,223.02,223.01,0.03224781]
[1757567890365,8.69338576,223.02,223.01,0.03224781]
[1757567894868,9.13338576,223.02,222.9,2.06365941]
[1757567895070,8.69338576,222.98,222.9,2.06365941]
[1757567895270,7.04,222.98,222.9,2.06365941]
[1757567895459,8.69338576,222.98,222.9,2.06365941]
[1757567896266,0.0321732,222.96,222.9,2.06365941]
[1757567896566,0.0321732,222.96,222.9,9.18365941]
[1757567897763,0.0321732,222.96,222.9,3.71704517]
[1757567897969,0.0321732,222.96,222.91,7.12]
[1757567898871,0.0321732,222.96,222.9,2.06365941]
[1757567899063,0.0321732,222.96,222.92,7.12]
[1757567900071,0.0321732,222.96,222.91,1.65338576]
[1757567900271,0.0321732,222.96,222.92,7.12]
[1757567900470,0.0321732,222.96,222.91,1.65338576]
[1757567900772,0.0321732,222.96,222.92,7.12]
[1757567900974,0.0321732,222.96,222.91,1.65338576]
[1757567901174,0.0321732,222.96,222.92,7.12]
[1757567901370,0.0321732,222.96,222.91,1.65338576]
[1757567901675,0.0321732,222.96,222.92,7.12]
[1757567901875,0.0321732,222.96,222.91,1.65338576]
[1757567902575,7.0721732,222.96,222.92,7.12]
[1757567903276,7.0721732,222.96,222.9,2.06365941]
[1757567903974,7.0721732,222.96,222.91,7.12]
[1757567904174,7.0721732,222.96,222.9,2.06365941]
[1757567904577,0.0321732,222.96,222.9,2.06365941]
[1757567904779,0.0321732,222.96,222.91,7.12]
[1757567905173,0.0321732,222.96,222.9,2.06365941]
[1757567905469,0.0321732,222.96,222.91,7.12]
[1757567905872,0.0321732,222.96,222.9,9.18365941]
[1757567906272,1.65338576,222.95,222.9,2.06365941]
[1757567906477,7.04,222.94,222.9,9.18365941]
[1757567906680,0.0321732,222.96,222.9,2.06365941]
[1757567906881,8.69338576,222.94,222.9,9.18365941]
[1757567907276,7.04,222.94,222.9,9.18365941]
[1757567909073,7.04,222.94,222.91,7.4]
[1757567912882,7.48,222.94,222.9,2.06365941]
[1757567913081,1.65338576,222.93,222.9,2.06365941]
[1757567913386,1.65338576,222.94,222.9,2.06365941]
[1757567913583,1.65338576,222.94,222.91,7.4]
[1757567913782,9.13338576,222.94,222.91,7.4]
[1757567914081,7.48,222.93,222.9,2.06365941]
[1757567914286,7.48,222.92,222.9,2.06365941]
[1757567914681,1.65338576,222.93,222.9,2.06365941]
[1757567915282,7.48,222.92,222.9,2.06365941]
[1757567915482,1.65338576,222.93,222.9,2.06365941]
[1757567915987,0.0321732,222.96,222.9,2.06365941]
[1757567915988,9.13338576,222.91,222.9,2.06365941]
[1757567917785,7.48,222.91,222.9,2.06365941]
[1757567919188,9.13338576,222.92,222.9,2.06365941]
[1757567920381,7.48,222.91,222.9,2.06365941]
[1757567923693,14.45603013,222.91,222.8,7.4]
[1757567923895,14.45603013,222.91,222.8,9.05338576]
[1757567923896,6.97603013,222.9,222.8,9.05338576]
[1757567924087,5.12379883,222.89,222.8,9.05338576]
[1757567924290,0.03003407,222.88,222.8,9.05338576]
[1757567928297,0.03003407,222.88,222.8,7.4]
[1757567928598,7.51003407,222.88,222.8,7.4]
[1757567930801,0.03003407,222.88,222.8,7.4]
[1757567932201,7.51003407,222.88,222.8,7.4]
[1757567936502,7.51003407,222.88,222.76,7.4]
[1757567936902,7.48,222.88,222.76,7.4]
[1757567937103,0.03219847,222.84,222.76,7.4]
[1757567940900,0.03219847,222.84,222.78,7.43]
[1757567943610,0.03219847,222.84,222.81,7.43]
[1757567944006,0.03219847,222.84,222.81,7.87]
[1757567944608,0.03219847,222.84,222.81,0.44]
[1757567944810,0.03219847,222.84,222.81,7.43]
[1757567947413,7.39,222.94,222.81,7.87]
[1757567947613,7.39,222.98,222.83,2.59116305]
[1757567947815,6.97586694,222.97,222.87,7.43]
[1757567948016,7.39,222.98,222.87,7.43]
[1757567948216,6.97581029,222.97,222.87,7.43]
[1757567948414,7.39,222.98,222.87,7.43]
[1757567948616,0.03302007,222.94,222.87,7.43]
[1757567949318,7.39,222.93,222.87,7.43]
[1757567949818,7.39,222.93,222.82,7.43]
[1757567950514,0.03241875,222.9,222.82,7.43]
[1757567951816,0.03241875,222.9,222.83,2.59116305]
[1757567952017,0.03241875,222.9,222.84,7.43]
[1757567952317,0.03241875,222.9,222.82,7.43]
[1757567960821,7.39,222.89,222.82,7.43]
[1757567962518,9.98116305,222.89,222.78,7.43]
[1757567962717,7.39,222.87,222.78,7.43]
[1757567962925,7.39,222.85,222.78,7.43]
[1757567963124,7.42210302,222.85,222.78,7.43]
[1757567963422,3.69328328,222.84,222.78,7.43]
[1757567963618,6.28444633,222.83,222.72,313.78632928]
[1757567963817,7.39,222.81,222.72,308.79]
[1757567964024,3.69328328,222.8,222.72,308.79]
[1757567964220,0.03286813,222.79,222.72,308.79]
[1757567964420,0.03286813,222.79,222.73,7.43]
[1757567964620,7.39,222.78,222.72,301.36]
[1757567964824,7.39,222.78,222.72,308.79]
[1757567965325,7.39,222.78,222.72,7.43]
[1757567966825,7.39,222.78,222.7,2.06551267]
[1757567967025,7.39,222.78,222.71,7.5]
[1757567967224,0.03286813,222.79,222.71,7.5]
[1757567967423,3.71997447,222.78,222.71,7.5]
[1757567967623,0.03286813,222.79,222.71,7.5]
[1757567967841,3.71997447,222.78,222.71,7.5]
[1757567968023,0.03286813,222.79,222.71,7.5]
[1757567970224,0.03286813,222.79,222.73,7.5]
[1757567971820,0.03286813,222.79,222.74,53.42]
[1757567972022,0.03286813,222.79,222.75,7.5]
[1757567972828,0.03286813,222.79,222.76,7.5]
[1757567973624,0.03286813,222.79,222.75,2.59116305]
[1757567974037,0.03286813,222.79,222.76,7.5]
[1757567974237,0.03286813,222.79,222.75,2.59116305]
[1757567974438,0.03286813,222.79,222.76,7.5]
[1757567974834,0.03286813,222.79,222.75,2.59116305]
[1757567975632,0.03286813,222.79,222.71,75.33116305]
[1757567975835,0.03286813,222.79,222.72,7.5]
[1757567978633,7.24286813,222.79,222.72,7.5]
[1757567980234,3.71391598,222.78,222.72,7.5]
[1757567980544,7.24286813,222.79,222.7,2.06551267]
[1757567980740,7.21,222.77,222.7,2.06551267]
[1757567990450,8.87012962,222.77,222.7,2.06551267]
[1757567992253,7.21,222.77,222.7,2.06551267]
[1757567992558,7.21,222.74,222.7,2.06551267]
[1757567992953,1.66012962,222.75,222.7,2.06551267]
[1757567993151,7.21,222.73,222.7,2.06551267]
[1757567993352,0.03085365,222.74,222.7,2.06551267]
[1757567995055,7.21,222.73,222.7,2.06551267]
[1757567995654,0.03085365,222.74,222.7,2.06551267]
[1757567995954,7.21,222.71,222.7,2.06551267]
[1757567997056,7.21,222.71,222.7,2.0333142]
[1757568000154,7.51085365,222.74,222.7,9.5133142]
[1757568000649,7.51085365,222.74,222.71,7.48]
[1757568002250,7.48,222.73,222.7,2.0333142]
[1757568002458,7.48,222.73,222.7,9.5133142]
[1757568002659,0.03085365,222.74,222.7,2.0333142]
[1757568002856,0.03085365,222.74,222.71,7.48]
[1757568003158,7.51085365,222.74,222.71,7.48]
[1757568004659,0.03085365,222.74,222.71,7.48]
[1757568005757,0.03085365,222.74,222.7,2.0333142]
[1757568005959,0.03085365,222.74,222.73,7.48]
[1757568006158,1.66012962,222.81,222.73,7.48]
[1757568006358,3.75195472,222.8,222.73,7.48]
[1757568006558,3.75195472,222.79,222.73,7.48]
[1757568006760,3.75195472,222.78,222.73,7.48]
[1757568006965,1.66012962,222.81,222.73,7.48]
[1757568007152,7.49102551,222.8,222.73,7.48]
[1757568007455,0.03025146,222.79,222.75,1.66012962]
[1757568007662,0.03025146,222.79,222.72,1.66012962]
[1757568007860,5.41433804,222.78,222.71,7.48]
[1757568008055,1.66012962,222.78,222.71,7.48]
[1757568008457,1.66012962,222.76,222.71,7.48]
[1757568008764,7.48,222.75,222.71,7.48]
[1757568008958,7.48,222.73,222.7,2.0333142]
[1757568009361,1.66012962,222.74,222.71,7.48]
[1757568009564,0.03062553,222.74,222.71,7.48]
[1757568009763,0.03062553,222.74,222.7,2.0333142]
[1757568010070,0.03062553,222.74,222.71,7.48]
[1757568010264,0.03062553,222.74,222.7,2.0333142]
[1757568010758,0.03062553,222.74,222.71,7.48]
[1757568010965,0.03062553,222.74,222.7,2.0333142]
[1757568011758,0.03062553,222.74,222.71,7.48]
[1757568012170,0.03062553,222.74,222.7,2.0333142]
[1757568012869,0.03062553,222.74,222.71,7.48]
[1757568013073,0.03062553,222.74,222.7,2.0333142]
[1757568013756,0.03062553,222.74,222.71,7.48]
[1757568014565,0.03062553,222.74,222.7,2.0333142]
[1757568015058,0.03062553,222.74,222.71,7.48]
[1757568016169,0.03062553,222.74,222.7,2.0333142]
[1757568016969,0.03062553,222.74,222.71,7.48]
[1757568017161,0.03062553,222.74,222.7,2.0333142]
[1757568017362,0.03062553,222.74,222.71,7.48]
[1757568017760,0.03062553,222.74,222.7,2.0333142]
[1757568018662,0.03062553,222.74,222.71,7.48]
[1757568018964,0.03062553,222.74,222.7,2.0333142]
[1757568019376,0.03062553,222.74,222.71,7.48]
[1757568019869,0.03062553,222.74,222.7,2.0333142]
[1757568020068,0.03062553,222.74,222.71,7.48]
[1757568020270,0.03062553,222.74,222.7,2.0333142]
[1757568020670,0.03062553,222.74,222.71,7.48]
[1757568022465,0.03062553,222.74,222.7,2.0333142]
[1757568022862,0.03062553,222.74,222.71,7.48]
[1757568023463,0.03062553,222.74,222.7,2.0333142]
[1757568023666,0.03062553,222.74,222.72,1.66012962]
[1757568023869,0.03062553,222.74,222.73,7.48]
[1757568024066,0.03062553,222.74,222.7,2.0333142]
[1757568024267,0.03062553,222.74,222.71,7.48]
[1757568025175,0.03062553,222.74,222.7,2.0333142]
[1757568025176,3.73673339,222.73,222.7,2.0333142]
[1757568025470,1.69075515,222.74,222.7,2.0333142]
[1757568025674,7.26641009,222.73,222.7,2.0333142]
[1757568025975,7.48,222.71,222.7,2.0333142]
[1757568026176,12.87661648,222.71,222.7,2.0333142]
[1757568027077,3.73648686,222.71,222.7,2.0333142]
[1757568027270,10.93648686,222.71,222.7,2.00246055]
[1757568027477,14.46492394,222.71,222.7,2.00246055]
[1757568028085,16.12505356,222.71,222.7,2.00246055]
[1757568038379,8.92505356,222.71,222.7,2.00246055]
[1757568039784,16.12505356,222.71,222.7,2.00246055]
[1757568042481,1.66012962,222.73,222.7,9.54246055]
[1757568042684,10.9304373,222.72,222.7,2.00246055]
[1757568042985,7.2,222.72,222.7,2.00246055]
[1757568044187,1.66012962,222.73,222.71,7.54]
[1757568044486,8.86012962,222.73,222.7,9.54246055]
[1757568044697,1.69075515,222.74,222.7,2.00246055]
[1757568044898,1.69075515,222.74,222.71,7.54]
[1757568045095,1.69075515,222.74,222.7,2.00246055]
[1757568045295,0.03062553,222.74,222.71,7.54]
[1757568045497,1.69075515,222.74,222.7,2.00246055]
[1757568046104,1.69075515,222.74,222.71,7.54]
[1757568046492,1.69075515,222.74,222.72,7.54]
[1757568048102,1.69075515,222.74,222.71,7.54]
[1757568048299,0.03062553,222.74,222.7,2.00246055]
[1757568048996,0.03062553,222.74,222.71,7.54]
[1757568049902,0.03062553,222.74,222.7,2.00246055]
[1757568050098,0.03062553,222.74,222.71,7.54]
[1757568050500,0.03062553,222.74,222.7,2.00246055]
[1757568050900,0.03062553,222.74,222.71,7.54]
[1757568051100,0.03062553,222.74,222.7,2.00246055]
[1757568051301,0.03062553,222.74,222.71,7.54]
[1757568051706,0.03062553,222.74,222.7,2.00246055]
[1757568052106,0.03062553,222.74,222.71,7.54]
[1757568052399,0.03062553,222.74,222.7,2.00246055]
[1757568052606,0.03062553,222.74,222.71,7.54]
[1757568052806,0.03062553,222.74,222.7,2.00246055]
[1757568053405,0.03062553,222.74,222.71,7.54]
[1757568054307,7.2,222.73,222.7,9.54246055]
[1757568054506,0.03062553,222.74,222.71,7.54]
[1757568055404,7.2,222.73,222.7,2.00246055]
[1757568055709,7.2,222.73,222.7,9.54246055]
[1757568057603,7.06,222.73,222.7,2.00246055]
[1757568057808,0.03062553,222.74,222.7,2.00246055]
[1757568058013,7.06,222.73,222.7,2.00246055]
[1757568058603,0.03062553,222.74,222.7,2.00246055]
[1757568058912,7.21832551,222.73,222.7,2.00246055]
[1757568059107,7.21822112,222.72,222.7,2.00246055]
[1757568059307,7.06,222.73,222.7,2.00246055]
[1757568059505,14.27779402,222.72,222.7,2.00246055]
[1757568059808,7.06,222.72,222.7,2.00246055]
[1757568061312,0.03062553,222.74,222.7,2.00246055]
[1757568061613,7.21724822,222.73,222.7,2.00246055]
[1757568061913,7.06,222.71,222.7,2.00246055]
[1757568062105,10.79182649,222.71,222.7,2.00246055]
[1757568063209,14.27646964,222.71,222.7,2.00246055]
[1757568069813,14.27782823,222.71,222.7,2.00246055]
[1757568071613,16.87155974,222.71,222.7,2.00246055]
[1757568073014,17.31155974,222.71,222.61,7.47]
[1757568073213,7.06,222.67,222.61,7.47]
[1757568073818,7.06,222.65,222.61,7.47]
[1757568074019,9.65373151,222.68,222.53,7.47]
[1757568074315,7.06,222.66,222.53,7.47]
[1757568074514,3.72843014,222.65,222.53,7.47]